bitfinex/quotes_SOLUSD_20250310
["timestamp","ask_amount","ask_price","bid_price","bid_amount"]
[1741609423899,81.1,130.02,129.99,43.11687716]
[1741609424283,81.1,130.02,130.0,43.08687716]
[1741609424485,57.38687716,130.05,130.01,43.08687716]
[1741609424486,0.14216157,130.04,130.01,43.08687716]
[1741609424682,0.14216157,130.04,129.99,0.03]
[1741609424886,0.14216157,130.03,130.0,43.08687716]
[1741609425199,0.14216157,130.02,129.99,0.03]
[1741609425373,124.18687716,130.01,129.99,0.03]
[1741609425577,0.14216157,130.0,129.99,0.03]
[1741609428017,7.97662314,130.0,129.99,0.03]
[1741609428309,0.28432314,130.0,129.99,0.03]
[1741609428709,7.97662314,130.0,129.99,0.03]
[1741609429208,150.81314916,130.0,129.99,0.03]
[1741609430111,69.71314916,130.0,129.99,0.03]
[1741609431397,7.97662314,130.0,129.99,0.03]
[1741609432608,7.6913,130.02,129.99,0.03]
[1741609432819,0.14216157,130.01,129.99,0.03]
[1741609434725,7.83406157,130.01,129.99,0.03]
[1741609435095,0.14216157,130.0,129.99,0.03]
[1741609435801,0.14216157,130.01,129.99,0.03]
[1741609437611,88.7913,130.02,129.99,0.03]
[1741609437916,81.1,130.02,129.99,43.11687716]
[1741609438322,88.7911,130.02,129.99,43.11687716]
[1741609438496,81.1,130.02,129.99,43.11687716]
[1741609440703,88.7911,130.02,129.99,43.11687716]
[1741609440899,81.1,130.02,129.99,43.11687716]
[1741609441814,0.14216157,130.05,130.01,43.08687716]
[1741609442119,0.14216157,130.06,130.03,43.08687716]
[1741609442303,0.14216157,130.06,130.03,26.97790289]
[1741609442707,0.14216157,130.06,130.04,26.97790289]
[1741609443019,0.14216157,130.08,130.05,26.97790289]
[1741609443315,81.163,130.09,130.06,26.97790289]
[1741609443521,0.14216157,130.08,130.06,26.97790289]
[1741609444013,0.14216157,130.08,130.05,26.97790289]
[1741609444919,0.20516157,130.09,130.06,26.97790289]
[1741609445123,8.03452314,130.09,130.05,26.97790289]
[1741609446235,0.28432314,130.07,130.01,6.2187]
[1741609446531,0.28432314,130.04,130.0,1.5136]
[1741609446697,43.31361399,130.02,129.99,0.03]
[1741609447109,0.14216157,130.02,129.99,0.03]
[1741609448523,0.14216157,130.04,130.0,43.17145242]
[1741609448698,0.14216157,130.04,130.02,43.17145242]
[1741609449009,81.1,130.05,130.02,43.17145242]
[1741609449212,0.28432314,130.04,129.99,0.03]
[1741609449413,0.28432314,130.04,130.0,43.17145242]
[1741609449929,43.45577556,130.04,129.99,0.03]
[1741609450137,0.14216157,130.01,129.99,0.03]
[1741609450321,7.6923,130.0,129.99,0.03]
[1741609450623,7.83446157,130.0,129.99,0.03]
[1741609452022,0.14216157,130.0,129.99,0.03]
[1741609452531,7.83446157,130.0,129.99,0.03]
[1741609453026,7.97662314,130.0,129.99,0.03]
[1741609453436,51.14807556,130.0,129.99,0.03]
[1741609454920,0.14216157,129.99,129.97,0.03]
[1741609455126,43.31361399,129.98,129.97,0.03]
[1741609455451,81.24216157,129.99,129.97,0.03]
[1741609456037,0.14216157,129.98,129.97,0.03]
[1741609456599,7.83556157,129.98,129.97,0.03]
[1741609458011,132.24917556,129.98,129.97,0.03]
[1741609458317,150.89882442,129.98,129.97,0.03]
[1741609461018,132.24917556,129.98,129.97,0.03]
[1741609461333,89.07772314,129.98,129.97,0.03]
[1741609462024,132.24917556,129.98,129.97,0.03]
[1741609462619,89.07772314,129.98,129.97,0.03]
[1741609463133,81.38432314,129.98,129.97,0.03]
[1741609463624,89.07772314,129.98,129.97,0.03]
[1741609465006,132.24917556,129.98,129.97,0.03]
[1741609465626,89.07772314,129.98,129.97,0.03]
[1741609467236,18.933972,129.97,129.95,0.03]
[1741609467436,7.83676157,129.96,129.95,0.03]
[1741609468633,7.97892314,129.96,129.95,0.03]
[1741609469135,7.83676157,129.96,129.95,0.03]
[1741609469842,81.1,129.97,129.95,23.18914688]
[1741609470040,81.1,129.97,129.96,23.15914688]
[1741609470519,0.14216157,129.99,129.96,23.15914688]
[1741609470720,7.6929,129.99,129.97,23.15914688]
[1741609471145,7.6926,130.0,129.98,23.15914688]
[1741609471523,0.063,129.99,129.98,23.15914688]
[1741609473432,0.28432314,130.05,129.98,23.15914688]
[1741609473748,0.14216157,130.06,130.04,23.15914688]
[1741609473933,7.83046157,130.07,130.04,23.15914688]
[1741609475041,7.97262314,130.07,130.04,23.15914688]
[1741609475420,7.97262314,130.07,129.98,18.64964886]
[1741609475646,0.14216157,130.05,130.01,23.15914688]
[1741609476023,131.45217002,130.07,130.01,23.15914688]
[1741609476442,0.14216157,130.05,130.01,23.15914688]
[1741609476843,0.14216157,130.05,130.02,23.15914688]
[1741609477450,7.6899,130.04,130.0,20.0]
[1741609477637,7.6899,130.04,130.01,23.15914688]
[1741609477955,0.14216157,130.04,130.02,23.15914688]
[1741609478849,7.689,130.06,130.02,23.15914688]
[1741609479044,0.14216157,130.05,130.03,23.15914688]
[1741609479238,0.14216157,130.05,130.02,23.15914688]
[1741609479550,7.6899,130.04,130.02,23.15914688]
[1741609480047,0.14216157,130.05,130.02,23.15914688]
[1741609480231,0.14216157,130.05,130.03,23.15914688]
[1741609480432,0.14216157,130.05,130.02,23.15914688]
[1741609480830,0.28432314,130.05,130.0,20.0]
[1741609481135,0.14216157,130.03,129.99,23.15914688]
[1741609481631,7.6911,130.02,129.99,23.15914688]
[1741609482043,88.7903,130.04,130.01,23.15914688]
[1741609482222,88.7903,130.04,129.97,7.6336]
[1741609482223,88.7903,130.04,130.02,23.15914688]
[1741609482427,7.6903,130.04,130.02,23.15914688]
[1741609482653,7.6903,130.04,130.01,23.15914688]
[1741609483051,7.97382314,130.05,130.02,23.15914688]
[1741609483428,0.063,130.02,130.0,20.0]
[1741609483628,0.063,130.02,130.01,23.15914688]
[1741609484632,0.063,130.02,129.97,26.28324886]
[1741609484832,0.063,130.02,130.01,23.15914688]
[1741609485556,0.063,130.02,129.98,18.64964886]
[1741609485750,0.063,130.02,130.01,23.15914688]
[1741609486553,0.063,130.02,129.98,18.64964886]
[1741609486760,0.063,130.02,130.01,23.15914688]
[1741609486936,7.83026157,130.07,130.02,6.4998]
[1741609487135,7.83026157,130.07,130.05,23.15914688]
[1741609487330,7.83026157,130.07,130.02,29.65894688]
[1741609487331,7.83026157,130.07,130.02,6.4998]
[1741609487645,7.83026157,130.07,130.03,23.15914688]
[1741609489153,27.05066157,130.07,130.02,6.4998]
[1741609489475,27.05066157,130.07,130.02,23.15914688]
[1741609489754,23.30130845,130.06,130.01,24.66764688]
[1741609489968,0.14216157,130.06,130.02,23.15914688]
[1741609490260,23.44347002,130.04,129.99,23.15914688]
[1741609490436,0.14216157,130.04,129.99,23.15914688]
[1741609490637,0.14216157,130.04,130.01,23.15914688]
[1741609490960,0.14216157,130.05,130.02,23.15914688]
[1741609491336,7.83176157,130.05,130.01,23.15914688]
[1741609492035,88.789,130.06,130.03,23.15914688]
[1741609492450,88.789,130.06,130.02,23.15914688]
[1741609492855,88.789,130.06,130.03,23.15914688]
[1741609493457,88.789,130.06,130.02,23.15914688]
[1741609493653,88.789,130.06,130.01,23.15914688]
[1741609493843,0.14216157,130.05,130.0,23.15914688]
[1741609494248,0.28432314,130.05,130.0,23.15914688]
[1741609494445,0.28432314,130.05,129.97,1.6515]
[1741609494641,0.28432314,130.05,129.99,20.0]
[1741609494842,23.44347002,130.05,130.0,23.15914688]
[1741609495148,0.14216157,130.03,129.98,23.15914688]
[1741609495350,0.14216157,130.01,129.98,23.15914688]
[1741609495541,0.14216157,130.01,129.97,1.6515]
[1741609495741,0.14216157,130.01,129.97,24.81064688]
[1741609496156,0.14216157,130.01,129.98,23.15914688]
[1741609496348,0.14216157,130.01,129.97,1.6515]
[1741609496557,0.14216157,130.01,129.98,23.15914688]
[1741609496759,0.14216157,130.01,129.97,24.81064688]
[1741609497155,23.44347002,130.01,129.97,1.6515]
[1741609497351,0.28432314,129.99,129.97,0.03]
[1741609497547,23.44347002,129.99,129.97,0.03]
[1741609498068,123.19311888,129.98,129.97,0.0001]
[1741609498370,42.09311888,129.98,129.97,0.0001]
[1741609499246,49.78651888,129.98,129.97,0.0001]
[1741609499546,55.9036324,129.98,129.97,0.0001]
[1741609501555,56.04271888,129.98,129.97,0.0001]
[1741609502365,62.30160511,129.98,129.97,0.0001]
[1741609502565,56.04271888,129.98,129.97,0.0001]
[1741609504473,18.933972,129.97,129.96,0.0001]
[1741609504777,23.44347002,129.97,129.96,0.0001]
[1741609505362,104.54347002,129.97,129.96,0.0001]
[1741609505547,130.88711888,129.97,129.96,0.0001]
[1741609505742,18.933972,129.96,129.95,0.0001]
[1741609505970,79.55226576,129.96,129.95,0.0001]
[1741609506858,56.39311888,129.96,129.95,0.0001]
[1741609507261,37.74347002,129.96,129.95,0.0001]
[1741609507460,45.43807002,129.96,129.95,0.0001]
[1741609508170,64.08771888,129.96,129.95,0.0001]
[1741609508873,87.24686576,129.96,129.95,0.0001]
[1741609509244,64.08771888,129.96,129.95,0.0001]
[1741609510554,87.24686576,129.96,129.95,0.0001]
[1741609510846,64.08771888,129.96,129.95,0.0001]
[1741609511263,22.27892314,129.96,129.95,0.0001]
[1741609512283,64.08771888,129.96,129.95,0.0001]
[1741609512489,45.43807002,129.96,129.95,0.0001]
[1741609512786,64.08771888,129.96,129.95,0.0001]
[1741609512991,93.30456576,129.96,129.95,0.0001]
[1741609513182,79.00456576,129.96,129.9,0.0001]
[1741609513491,42.09311888,129.91,129.9,0.0001]
[1741609513678,49.79071888,129.91,129.9,0.0001]
[1741609513997,20.28432314,129.87,129.84,0.03]
[1741609514206,23.30130845,129.85,129.84,0.0001]
[1741609514496,56.39311888,129.85,129.84,0.0001]
[1741609514791,79.55226576,129.85,129.84,0.0001]
[1741609514965,65.25226576,129.85,129.84,0.0001]
[1741609515363,20.0,129.8,129.76,1.5505]
[1741609515575,7.7046,129.8,129.76,24.70964688]
[1741609515985,31.14717002,129.81,129.76,24.70964688]
[1741609516284,7.98802314,129.81,129.77,23.15914688]
[1741609516487,0.14216157,129.8,129.77,23.15914688]
[1741609516891,20.0,129.83,129.79,23.15914688]
[1741609517064,26.9531,129.86,129.76,1.5505]
[1741609517065,0.28432314,129.85,129.76,1.5505]
[1741609517267,18.933972,129.83,129.76,1.5505]
[1741609517464,23.44347002,129.83,129.76,1.5505]
[1741609517666,0.14216157,129.81,129.78,23.15914688]
[1741609518266,23.44347002,129.81,129.76,1.5505]
[1741609518586,23.44347002,129.79,129.74,25.69583248]
[1741609518775,0.14216157,129.77,129.74,2.5366856]
[1741609519165,0.28432314,129.76,129.74,2.5366856]
[1741609519576,7.7059,129.77,129.74,2.5366856]
[1741609519781,7.7059,129.77,129.74,25.69583248]
[1741609519994,99.74964886,129.81,129.76,23.15914688]
[1741609519995,0.28432314,129.8,129.76,23.15914688]
[1741609520194,89.08892314,129.8,129.76,23.15914688]
[1741609520373,7.84676157,129.8,129.76,37.15930542]
[1741609520767,81.1,129.85,129.75,18.67964886]
[1741609520973,7.7017,129.84,129.8,37.15930542]
[1741609521179,0.14216157,129.83,129.79,37.15930542]
[1741609521381,0.28432314,129.83,129.78,37.15930542]
[1741609521595,7.7029,129.82,129.75,18.67964886]
[1741609521789,37.44362856,129.81,129.76,37.15930542]
[1741609521979,37.30146699,129.78,129.75,0.03]
[1741609522183,0.14216157,129.76,129.75,0.03]
[1741609522587,37.44362856,129.76,129.75,0.03]
[1741609523503,0.14216157,129.75,129.74,2.5366856]
[1741609523711,63.80037742,129.75,129.74,8.56e-05]
[1741609524001,0.14216157,129.74,129.7,0.1]
[1741609524180,37.44362856,129.71,129.7,0.1]
[1741609524374,37.44362856,129.71,129.7,0.0001]
[1741609524603,56.09327742,129.71,129.7,0.0001]
[1741609524978,56.09327742,129.71,129.7,4.5655994]
[1741609525180,37.44362856,129.71,129.7,4.5655994]
[1741609525686,45.15312856,129.71,129.7,4.5655994]
[1741609526202,63.80277742,129.71,129.7,9.94e-05]
[1741609526582,45.15312856,129.71,129.7,9.94e-05]
[1741609526979,63.80277742,129.71,129.7,9.94e-05]
[1741609527181,0.14216157,129.7,129.57,7.9231]
[1741609527400,0.28432314,129.61,129.53,2.0]
[1741609527609,7.7172,129.58,129.51,2.0]
[1741609527781,7.7172,129.58,129.54,37.15930542]
[1741609527982,7.7148,129.62,129.57,37.15930542]
[1741609528289,0.14216157,129.61,129.54,37.15930542]
[1741609528593,81.1,129.65,129.6,37.15930542]
[1741609528908,7.85586157,129.64,129.61,37.15930542]
[1741609529210,7.85586157,129.64,129.56,18.64964886]
[1741609529387,7.85586157,129.64,129.56,20.64964886]
[1741609529593,7.7132,129.65,129.63,37.15930542]
[1741609530081,7.85466157,129.66,129.6,37.15930542]
[1741609530282,7.85466157,129.66,129.59,1.642]
[1741609530283,27.13576157,129.66,129.59,1.642]
[1741609530480,64.29506699,129.66,129.61,37.15930542]
[1741609530697,0.14216157,129.64,129.61,37.15930542]
[1741609530884,81.1,129.65,129.63,37.15930542]
[1741609531085,81.1,129.68,129.64,37.15930542]
[1741609531291,0.14216157,129.7,129.67,37.15930542]
[1741609531684,37.15930542,129.74,129.69,37.15930542]
[1741609531984,45.15132856,129.74,129.69,37.18930542]
[1741609532194,45.15132856,129.74,129.69,0.03]
[1741609532681,7.99202314,129.74,129.7,37.15930542]
[1741609532878,0.14216157,129.72,129.69,0.03]
[1741609533075,37.44362856,129.72,129.69,0.03]
[1741609533281,37.44362856,129.7,129.69,0.03]
[1741609533499,56.09327742,129.7,129.69,0.03]
[1741609533702,63.80337742,129.7,129.69,0.03]
[1741609534203,0.14216157,129.66,129.63,37.15930542]
[1741609534718,0.14216157,129.66,129.58,25.14344886]
[1741609534926,0.14216157,129.66,129.63,37.15930542]
[1741609535124,20.0,129.67,129.65,37.15930542]
[1741609535303,0.14216157,129.68,129.66,37.15930542]
[1741609535506,0.14216157,129.68,129.65,37.15930542]
[1741609535800,0.14216157,129.68,129.6,37.15930542]
[1741609535801,37.44362856,129.69,129.64,37.15930542]
[1741609536118,0.14216157,129.67,129.6,37.15930542]
[1741609536299,20.14216157,129.64,129.59,1.642]
[1741609536500,0.14216157,129.64,129.6,37.15930542]
[1741609537023,0.14216157,129.61,129.57,37.18930542]
[1741609537187,0.14216157,129.61,129.57,0.03]
[1741609537608,0.14216157,129.61,129.57,37.18930542]
[1741609537897,0.14216157,129.61,129.57,0.03]
[1741609537898,7.7154,129.61,129.57,0.03]
[1741609538314,7.7154,129.61,129.58,37.15930542]
[1741609538594,7.7154,129.61,129.59,37.15930542]
[1741609539005,0.14216157,129.6,129.57,20.03]
[1741609539202,0.14216157,129.6,129.57,57.18930542]
[1741609539405,0.14216157,129.6,129.58,37.15930542]
[1741609539603,0.14216157,129.6,129.57,37.18930542]
[1741609540117,7.7166,129.59,129.57,37.18930542]
[1741609540321,56.09327742,129.58,129.49,2.5959778]
[1741609540496,37.44362856,129.54,129.49,2.5959778]
[1741609540692,0.28432314,129.54,129.52,37.15930542]
[1741609540912,0.28432314,129.54,129.49,2.5959778]
[1741609540913,18.933972,129.54,129.51,20.0]
[1741609541092,0.28432314,129.57,129.53,37.15930542]
[1741609541289,0.28432314,129.57,129.52,37.15930542]
[1741609541290,37.44362856,129.57,129.52,37.15930542]
[1741609541496,0.28432314,129.58,129.54,37.15930542]
[1741609541690,7.7166,129.59,129.57,37.15930542]
[1741609541916,7.7166,129.59,129.54,37.15930542]
[1741609542117,0.28432314,129.58,129.54,37.15930542]
[1741609542311,0.28432314,129.55,129.49,2.5959778]
[1741609542524,0.14216157,129.53,129.49,2.5959778]
[1741609542694,0.14216157,129.53,129.49,39.75528322]
[1741609542900,0.28432314,129.53,129.49,39.75528322]
[1741609543207,56.09327742,129.53,129.49,2.5959778]
[1741609543407,37.15930542,129.52,129.49,2.5959778]
[1741609543613,0.14216157,129.51,129.49,2.5959778]
[1741609543918,0.14216157,129.52,129.49,2.5959778]
[1741609544098,0.14216157,129.51,129.49,2.5959778]
[1741609544299,7.86346157,129.52,129.49,39.75528322]
[1741609544507,7.86346157,129.52,129.49,2.5959778]
[1741609545919,45.02276699,129.52,129.49,2.5959778]
[1741609546226,7.722,129.5,129.49,2.5959778]
[1741609546916,37.30146699,129.52,129.49,2.5959778]
[1741609546917,7.7215,129.51,129.49,2.5959778]
[1741609548109,0.14216157,129.52,129.49,2.5959778]
[1741609548314,7.721,129.52,129.49,2.5959778]
[1741609548609,81.1,129.53,129.49,2.5959778]
[1741609548821,7.72,129.54,129.5,37.15930542]
[1741609549326,7.72,129.54,129.49,2.5959778]
[1741609549529,44.87930542,129.54,129.49,39.75528322]
[1741609549734,37.15930542,129.53,129.49,2.5959778]
[1741609550236,7.7208,129.52,129.49,2.5959778]
[1741609550410,0.28432314,129.51,129.49,2.5959778]
[1741609550609,37.44362856,129.51,129.49,2.5959778]
[1741609551828,118.54362856,129.51,129.49,2.5959778]
[1741609552029,37.15930542,129.5,129.49,2.5959778]
[1741609552235,44.88130542,129.5,129.49,2.5959778]
[1741609552406,45.16562856,129.5,129.49,7.78e-05]
[1741609552832,63.81527742,129.5,129.49,7.78e-05]
[1741609553327,65.77916157,129.5,129.43,37.15930542]
[1741609553530,37.15930542,129.46,129.37,7.9855]
[1741609553713,37.15930542,129.46,129.41,37.15930542]
[1741609553908,65.637,129.5,129.37,7.9855]
[1741609554116,37.15930542,129.45,129.4,37.15930542]
[1741609554417,37.15930542,129.44,129.39,37.15930542]
[1741609554626,0.28432314,129.46,129.39,37.15930542]
[1741609554819,0.28432314,129.44,129.39,37.15930542]
[1741609555020,0.14216157,129.46,129.37,7.9855]
[1741609555223,37.44362856,129.46,129.37,7.9855]
[1741609555424,0.28432314,129.46,129.37,7.9855]
[1741609555711,44.88300542,129.47,129.42,37.15930542]
[1741609555932,64.19240542,129.47,129.42,37.15930542]
[1741609556142,7.7237,129.47,129.42,37.15930542]
[1741609556342,7.7237,129.47,129.43,37.15930542]
[1741609556523,0.28432314,129.46,129.37,26.63514886]
[1741609556720,37.15930542,129.46,129.37,26.63514886]
[1741609557043,63.83982856,129.47,129.42,37.15930542]
[1741609557934,37.15930542,129.46,129.37,7.9855]
[1741609558143,37.15930542,129.43,129.37,7.9855]
[1741609558349,7.7267,129.42,129.37,7.9855]
[1741609558511,44.88600542,129.42,129.37,38.69550542]
[1741609558711,27.0436,129.42,129.37,1.5362]
[1741609559009,37.15930542,129.4,129.36,0.03]
[1741609559626,81.38432314,129.41,129.36,0.03]
[1741609559934,37.15930542,129.38,129.36,0.03]
[1741609560340,7.87186157,129.37,129.36,0.03]
[1741609560515,7.7297,129.37,129.36,0.03]
[1741609560841,27.18596157,129.42,129.36,37.18930542]
[1741609561024,37.15930542,129.41,129.36,0.03]
[1741609561223,37.15930542,129.38,129.36,0.03]
[1741609561442,37.15930542,129.39,129.36,0.03]
[1741609561645,81.1,129.4,129.36,37.18930542]
[1741609562247,7.7273,129.41,129.37,37.15930542]
[1741609562415,81.1,129.43,129.36,0.03]
[1741609562416,81.1,129.43,129.39,37.15930542]
[1741609562623,7.727,129.42,129.39,37.15930542]
[1741609563015,7.7255,129.44,129.41,37.15930542]
[1741609563215,7.7255,129.44,129.36,37.18930542]
[1741609563216,27.0394,129.44,129.36,37.18930542]
[1741609563438,7.7255,129.44,129.41,37.15930542]
[1741609563639,7.7255,129.44,129.42,37.15930542]
[1741609564212,7.7243,129.46,129.39,1.5803]
[1741609564426,7.7243,129.46,129.42,37.15930542]
[1741609564754,7.7243,129.46,129.45,37.15930542]
[1741609565039,7.7226,129.49,129.45,37.15930542]
[1741609565241,7.7226,129.49,129.46,37.15930542]
[1741609565441,7.7226,129.49,129.42,37.15930542]
[1741609565442,88.8216,129.51,129.47,37.15930542]
[1741609565627,88.8216,129.51,129.46,37.15930542]
[1741609566023,145.28440542,129.51,129.46,37.15930542]
[1741609566236,56.46580542,129.49,129.44,37.15930542]
[1741609566427,7.722,129.5,129.44,37.15930542]
[1741609566612,7.722,129.5,129.42,37.15930542]
[1741609566941,88.822,129.5,129.42,55.80895428]
[1741609567240,88.822,129.5,129.47,37.15930542]
[1741609567436,7.7208,129.52,129.49,37.15930542]
[1741609567642,7.7208,129.52,129.5,37.15930542]
[1741609568136,93.70248436,129.53,129.51,37.15930542]
[1741609568137,12.60248436,129.53,129.51,37.15930542]
[1741609568340,20.32268436,129.53,129.49,1.5566]
[1741609568640,7.7202,129.53,129.49,37.15930542]
[1741609568816,7.719,129.55,129.51,37.15930542]
[1741609569024,7.7178,129.57,129.49,20.0]
[1741609569330,7.7178,129.57,129.54,37.15930542]
[1741609569518,7.7178,129.57,129.55,37.15930542]
[1741609569713,7.7178,129.57,129.49,40.64964886]
[1741609569714,7.7178,129.57,129.54,37.15930542]
[1741609569921,37.44362856,129.55,129.45,6.2282]
[1741609570238,37.44362856,129.55,129.49,37.15930542]
[1741609570239,7.7203,129.53,129.49,37.15930542]
[1741609570416,7.719,129.55,129.5,37.15930542]
[1741609570623,64.17580542,129.55,129.49,37.15930542]
[1741609570823,37.15930542,129.54,129.49,37.15930542]
[1741609571025,64.17580542,129.55,129.5,37.15930542]
[1741609571224,7.719,129.55,129.51,37.15930542]
[1741609571545,14.3,129.56,129.54,37.15930542]
[1741609571546,7.7186,129.56,129.54,37.15930542]
[1741609571743,7.7186,129.56,129.53,37.15930542]
[1741609572243,7.7186,129.56,129.55,37.15930542]
[1741609572436,81.1,129.57,129.55,37.15930542]
[1741609572638,0.063,129.59,129.56,37.15930542]
[1741609572836,7.7798,129.59,129.53,21.5772]
[1741609573143,37.15930542,129.57,129.48,38.73650542]
[1741609573327,81.38432314,129.56,129.48,1.5772]
[1741609573823,81.38432314,129.56,129.49,37.15930542]
[1741609574024,37.15930542,129.54,129.49,37.15930542]
[1741609574223,81.1,129.53,129.49,37.15930542]
[1741609574436,7.7208,129.52,129.47,37.15930542]
[1741609574634,27.0228,129.52,129.48,37.15930542]
[1741609574841,7.7208,129.52,129.49,37.15930542]
[1741609575918,7.7208,129.52,129.45,6.2282]
[1741609575919,27.0228,129.52,129.47,37.15930542]
[1741609576123,27.0228,129.52,129.45,6.2282]
[1741609576324,27.0228,129.52,129.47,37.15930542]
[1741609576518,27.0228,129.52,129.45,6.2282]
[1741609576519,27.0228,129.52,129.48,37.15930542]
[1741609577149,64.18210542,129.52,129.46,37.15930542]
[1741609577451,27.0228,129.52,129.47,37.15930542]
[1741609577827,64.18210542,129.52,129.47,37.15930542]
[1741609578023,27.0228,129.52,129.48,37.15930542]
[1741609578426,19.302,129.52,129.47,37.15930542]
[1741609578754,56.52430542,129.52,129.47,37.15930542]
[1741609579125,118.54362856,129.51,129.43,1.6202]
[1741609579323,37.15930542,129.5,129.45,37.15930542]
[1741609579532,37.15930542,129.47,129.39,18.64964886]
[1741609579734,37.15930542,129.46,129.4,37.15930542]
[1741609580252,0.28432314,129.43,129.36,0.03]
[1741609580427,27.0478,129.4,129.36,37.18930542]
[1741609580626,7.7279,129.4,129.37,37.15930542]
[1741609581352,27.0478,129.4,129.37,37.15930542]
[1741609581556,81.1,129.44,129.39,37.15930542]
[1741609581739,45.16732856,129.47,129.41,37.15930542]
[1741609581938,19.3124,129.46,129.42,37.15930542]
[1741609582136,7.7237,129.47,129.45,37.15930542]
[1741609582343,7.722,129.5,129.46,37.15930542]
[1741609582543,44.88130542,129.5,129.45,37.15930542]
[1741609582854,7.722,129.5,129.42,38.81510542]
[1741609583064,7.722,129.5,129.48,37.15930542]
[1741609583431,7.722,129.5,129.47,37.15930542]
[1741609583638,7.722,129.5,129.43,18.64964886]
[1741609584032,7.722,129.5,129.47,37.15930542]
[1741609584352,7.7214,129.51,129.48,37.15930542]
[1741609584752,7.7214,129.51,129.47,37.15930542]
[1741609584962,27.0249,129.51,129.47,37.15930542]
[1741609585256,108.1249,129.51,129.47,37.15930542]
[1741609585567,88.8214,129.51,129.48,37.15930542]
[1741609585930,88.8214,129.51,129.47,37.15930542]
[1741609586350,88.8214,129.51,129.48,37.15930542]
[1741609586656,108.1249,129.51,129.43,18.64964886]
[1741609586825,108.1249,129.51,129.47,37.15930542]
[1741609587032,118.25930542,129.5,129.42,45.43040542]
[1741609587346,118.25930542,129.5,129.44,37.15930542]
[1741609587533,118.25930542,129.5,129.42,8.2711]
[1741609587534,81.1,129.49,129.45,37.15930542]
[1741609587858,118.25930542,129.49,129.42,1.6558]
[1741609588055,27.0249,129.51,129.46,37.15930542]
[1741609588230,64.18420542,129.51,129.42,1.6558]
[1741609588431,64.19050542,129.48,129.38,7.5875]
[1741609588661,37.15930542,129.46,129.41,37.15930542]
[1741609589532,37.15930542,129.46,129.38,7.5875]
[1741609589727,37.15930542,129.46,129.41,37.15930542]
[1741609590257,118.25930542,129.47,129.41,37.15930542]
[1741609590448,27.0373,129.45,129.41,37.15930542]
[1741609590755,27.0373,129.45,129.41,37.18930542]
[1741609591152,7.7249,129.45,129.42,37.15930542]
[1741609591652,7.7249,129.45,129.41,0.03]
[1741609591861,7.7249,129.45,129.44,37.15930542]
[1741609592055,7.7232,129.48,129.44,37.15930542]
[1741609592261,7.7232,129.48,129.42,37.15930542]
[1741609592262,7.7232,129.48,129.46,37.15930542]
[1741609592561,27.0284,129.5,129.46,37.15930542]
[1741609592757,64.18770542,129.5,129.45,37.15930542]
[1741609593260,27.0284,129.5,129.46,37.15930542]
[1741609593459,27.0284,129.5,129.42,37.15930542]
[1741609593663,64.18770542,129.5,129.45,37.15930542]
[1741609593842,27.0284,129.5,129.46,37.15930542]
[1741609594461,64.18770542,129.5,129.45,37.15930542]
[1741609594661,27.0284,129.5,129.45,37.15930542]
[1741609594959,7.722,129.5,129.47,37.15930542]
[1741609595137,27.027,129.5,129.46,37.15930542]
[1741609595659,27.027,129.5,129.47,37.15930542]
[1741609596664,7.722,129.5,129.49,37.15930542]
[1741609597159,7.722,129.5,129.48,37.15930542]
[1741609597361,27.027,129.5,129.42,37.15930542]
[1741609597568,27.027,129.5,129.48,37.15930542]
[1741609597749,27.027,129.5,129.46,37.15930542]
[1741609598096,27.027,129.5,129.45,37.15930542]
[1741609598562,27.027,129.5,129.46,37.15930542]
[1741609598763,27.027,129.5,129.47,37.15930542]
[1741609599263,27.027,129.5,129.48,37.15930542]
[1741609599464,7.722,129.5,129.48,37.15930542]
[1741609599641,7.722,129.5,129.49,37.15930542]
[1741609600163,7.722,129.5,129.48,37.15930542]
[1741609600361,27.027,129.5,129.47,37.15930542]
[1741609600950,19.305,129.5,129.47,37.15930542]
[1741609602851,37.22230542,129.52,129.47,37.15930542]
[1741609603051,37.22230542,129.52,129.51,37.15930542]
[1741609603052,0.063,129.52,129.51,37.15930542]
[1741609603443,0.063,129.59,129.51,92.9682597]
[1741609603648,7.7796,129.59,129.56,37.15930542]
[1741609604053,20.0,129.55,129.47,1.15761943]